bitfinex/quotes_ETHUSD_20250323
["timestamp","ask_amount","ask_price","bid_price","bid_amount"]
[1742693383416,0.21463058,1993.2,1993.1,26.514]
[1742693384185,0.21463058,1993.2,1993.1,26.98027015]
[1742693389423,0.21463058,1993.2,1993.1,26.514]
[1742693394125,0.21463058,1993.2,1993.1,26.98016639]
[1742693395327,0.21463058,1993.2,1993.1,26.514]
[1742693396926,0.21463058,1993.2,1993.1,26.98035722]
[1742693397322,0.21463058,1993.2,1993.1,31.99765722]
[1742693397626,5.01586,1993.7,1993.3,5.01658]
[1742693397794,5.01606,1993.6,1993.3,7.57097786]
[1742693397995,5.01606,1993.6,1993.3,5.01658]
[1742693398516,0.21167276,1993.5,1993.3,7.57097786]
[1742693399691,0.21167276,1993.5,1993.3,8.03733508]
[1742693400934,0.21167276,1993.5,1993.3,7.57097786]
[1742693401708,0.21167276,1993.5,1993.2,7.57130786]
[1742693402043,0.21167276,1993.5,1993.2,12.58821786]
[1742693402235,0.21167276,1993.5,1993.3,2.55439786]
[1742693402616,0.21167276,1993.5,1993.3,3.02116759]
[1742693403533,0.21167276,1993.5,1993.3,8.03789759]
[1742693403731,0.21167276,1993.5,1993.4,3.02116759]
[1742693404557,5.22797276,1993.5,1993.4,0.46676973]
[1742693404742,6.25239704,1993.5,1993.4,0.46676973]
[1742693405733,7.01329704,1993.5,1993.4,26.98476973]
[1742693406538,7.01329704,1993.5,1993.4,26.518]
[1742693406703,0.21167276,1993.5,1993.4,26.518]
[1742693408235,0.21167276,1993.5,1993.4,34.08894786]
[1742693408644,0.21167276,1993.5,1993.4,34.55589155]
[1742693410953,0.21167276,1993.5,1993.4,26.98494369]
[1742693411848,0.21167276,1993.5,1993.4,32.00149369]
[1742693412349,0.21167276,1993.5,1993.4,26.98494369]
[1742693417563,5.01583,1993.7,1993.4,26.98494369]
[1742693417763,0.21388494,1993.5,1993.4,26.98494369]
[1742693417962,5.01583,1993.7,1993.4,26.98494369]
[1742693418153,0.21388494,1993.5,1993.4,26.98494369]
[1742693418320,5.01583,1993.7,1993.4,26.98494369]
[1742693418515,0.21388494,1993.6,1993.4,26.98494369]
[1742693418737,5.01583,1993.7,1993.4,26.98494369]
[1742693418947,0.21388494,1993.6,1993.4,26.98494369]
[1742693419431,5.01583,1993.7,1993.5,0.46694369]
[1742693419631,6.018977,1993.7,1993.5,0.46694369]
[1742693419817,6.018977,1993.7,1993.6,26.517]
[1742693422452,5.00583,1993.7,1993.6,26.517]
[1742693426243,5.21899937,1993.7,1993.6,26.98332043]
[1742693429759,0.21316937,1993.7,1993.6,26.98332043]
[1742693431366,5.22895937,1993.7,1993.6,26.98332043]
[1742693434745,0.21316937,1993.7,1993.6,34.55376829]
[1742693435054,5.01513,1994.0,1993.6,34.55376829]
[1742693435256,0.21316937,1993.7,1993.6,34.55376829]
[1742693435460,5.7928,1994.1,1993.7,5.01571]
[1742693435628,10.80783,1994.1,1993.7,7.57010786]
[1742693435938,5.01506,1994.0,1993.7,7.57010786]
[1742693437038,5.01506,1994.0,1993.8,0.46616214]
[1742693437830,5.01506,1994.0,1993.7,7.57010786]
[1742693439929,5.01506,1994.0,1993.8,0.46589503]
[1742693440634,0.778,1994.1,1993.8,0.46589503]
[1742693440828,5.79287,1994.1,1993.8,3.02029289]
[1742693441029,0.778,1994.1,1993.8,2.55439786]
[1742693441260,0.21421887,1994.0,1993.8,7.56982786]
[1742693441562,0.21421887,1994.0,1993.8,7.61997886]
[1742693441857,5.01464,1994.2,1993.8,7.61997886]
[1742693442072,0.21421887,1993.9,1993.8,7.61997886]
[1742693442566,5.01464,1994.2,1993.8,7.61997886]
[1742693442767,0.21421887,1994.1,1993.8,7.61997886]
[1742693442933,0.778,1994.3,1994.0,7.56931786]
[1742693443264,0.21421887,1994.2,1994.1,26.514]
[1742693444595,0.21421887,1994.2,1994.1,34.08318786]
[1742693444962,5.0136,1994.6,1994.2,5.01433]
[1742693445262,5.0136,1994.6,1994.3,7.56867786]
[1742693445263,0.21421887,1994.5,1994.3,7.56867786]
[1742693446269,0.21421887,1994.5,1994.3,2.55439786]
[1742693446439,5.22799887,1994.5,1994.2,7.56872786]
[1742693446639,5.22799887,1994.5,1994.2,8.03325848]
[1742693447167,5.01407,1994.4,1994.2,0.46453062]
[1742693447372,0.21708047,1994.3,1994.2,0.46453062]
[1742693447671,0.21708047,1994.3,1994.1,29.06839786]
[1742693448471,0.21708047,1994.3,1994.1,34.08316786]
[1742693448640,0.21708047,1994.3,1994.2,2.55439786]
[1742693448842,5.79021,1994.5,1994.2,2.55439786]
[1742693449067,0.21712815,1994.3,1994.2,2.55439786]
[1742693449269,5.79021,1994.5,1994.2,2.55439786]
[1742693449878,0.21712815,1994.4,1994.2,2.55439786]
[1742693452460,0.21712815,1994.4,1994.2,7.56887786]
[1742693452776,0.21712815,1994.4,1994.2,5.01448]
[1742693452941,10.02733,1994.6,1994.2,5.01448]
[1742693453274,0.21712815,1994.5,1994.2,7.56887786]
[1742693457190,0.21712815,1994.5,1994.4,2.55439786]
[1742693457359,0.21712815,1994.5,1994.4,7.56842786]
[1742693457558,10.02625,1994.8,1994.4,7.56842786]
[1742693457790,0.21898807,1994.7,1994.4,7.56826786]
[1742693458158,0.21898807,1994.7,1994.5,2.55439786]
[1742693458696,0.21898807,1994.7,1994.6,26.508]
[1742693459383,5.01314,1994.8,1994.6,26.508]
[1742693459575,0.21898807,1994.7,1994.6,26.508]
[1742693463193,5.23226807,1994.7,1994.6,26.508]
[1742693464570,0.21898807,1994.7,1994.6,26.508]
[1742693464770,0.21898807,1994.7,1994.6,29.06239786]
[1742693464963,5.8241,1994.9,1994.6,29.06239786]
[1742693465268,0.21989388,1994.8,1994.6,29.06239786]
[1742693465786,0.21989388,1994.7,1994.6,29.06239786]
[1742693465995,5.0128,1994.9,1994.6,29.06239786]
[1742693466195,0.21989388,1994.7,1994.6,29.06239786]
[1742693466504,5.0128,1994.9,1994.6,29.06239786]
[1742693467004,0.21989388,1994.8,1994.6,29.06239786]
[1742693467207,0.21989388,1994.8,1994.6,34.07591786]
[1742693467404,5.0128,1994.9,1994.6,34.07591786]
[1742693467569,0.21989388,1994.7,1994.6,34.07591786]
[1742693467770,5.0128,1994.9,1994.6,34.07591786]
[1742693468003,0.21989388,1994.8,1994.6,34.07591786]
[1742693468379,5.0128,1994.9,1994.6,34.07591786]
[1742693468570,0.22141938,1994.8,1994.6,34.07591786]
[1742693468865,5.0128,1994.9,1994.6,34.07591786]
[1742693469466,0.22141938,1994.8,1994.6,34.07591786]
[1742693469890,5.0128,1994.9,1994.6,34.07591786]
[1742693470276,0.22141938,1994.8,1994.6,34.07591786]
[1742693470601,5.0128,1994.9,1994.6,34.07591786]
[1742693470789,0.22141938,1994.7,1994.6,34.07591786]
[1742693470967,5.0128,1994.9,1994.6,34.07591786]
[1742693471167,0.22141938,1994.7,1994.6,34.07591786]
[1742693471398,5.0128,1994.9,1994.6,34.07591786]
[1742693471588,0.22141938,1994.7,1994.6,34.07591786]
[1742693472109,5.0128,1994.9,1994.6,34.07591786]
[1742693472592,5.23448938,1994.8,1994.6,26.508]
[1742693473418,5.01328,1994.7,1994.6,26.508]
[1742693473579,6.01409938,1994.8,1994.6,26.508]
[1742693474413,11.02730938,1994.8,1994.6,26.508]
[1742693475799,5.01328,1994.7,1994.6,26.508]
[1742693476039,5.23512838,1994.7,1994.6,26.508]
[1742693477313,6.01501852,1994.7,1994.6,26.508]
[1742693477509,6.79451852,1994.7,1994.6,26.508]
[1742693477816,6.01462838,1994.7,1994.6,26.508]
[1742693480615,8.56902624,1994.7,1994.6,26.508]
[1742693480815,6.01462838,1994.7,1994.6,26.508]
[1742693481017,8.56902624,1994.7,1994.6,26.508]
[1742693481217,6.01462838,1994.7,1994.6,26.508]
[1742693481417,7.372849,1994.7,1994.6,26.508]
[1742693482246,9.92724686,1994.7,1994.6,26.508]
[1742693483151,7.372849,1994.7,1994.6,26.508]
[1742693488459,9.92724686,1994.7,1994.6,26.508]
[1742693489162,10.47724686,1994.7,1994.6,26.508]
[1742693489549,13.47724686,1994.7,1994.6,26.508]
[1742693491963,5.01534,1993.9,1993.6,10.25]
[1742693492145,0.2197509,1993.8,1993.7,26.505]
[1742693492474,5.01534,1993.9,1993.7,26.505]
[1742693492836,5.23328814,1993.8,1993.7,26.97006632]
[1742693493555,5.23328814,1993.8,1993.7,26.505]
[1742693496266,0.21774814,1993.8,1993.7,26.505]
[1742693496568,5.01534,1993.9,1993.7,26.505]
[1742693496770,5.23328814,1993.8,1993.7,26.505]
[1742693499683,6.05868814,1993.8,1993.7,26.505]
[1742693502287,0.21774814,1993.8,1993.7,26.505]
[1742693502463,5.23328814,1993.8,1993.7,26.505]
[1742693502667,5.01554,1993.8,1993.7,26.505]
[1742693502856,5.22985432,1993.8,1993.7,26.505]
[1742693503258,11.26278755,1993.8,1993.7,26.505]
[1742693505678,7.00537375,1993.8,1993.7,26.505]
[1742693505856,5.98085432,1993.8,1993.7,26.505]
[1742693506778,13.78826812,1993.8,1993.7,26.505]
[1742693506975,5.01765,1993.0,1992.6,15.26855]
[1742693507196,10.03538,1993.0,1992.7,26.513]
[1742693507369,0.21388494,1992.9,1992.7,26.513]
[1742693508067,5.23186494,1992.9,1992.7,26.513]
[1742693508469,0.21388494,1992.9,1992.7,26.513]
[1742693510381,0.21388494,1992.9,1992.7,30.7704138]
[1742693510550,0.21388494,1992.9,1992.7,35.7887138]
[1742693511081,10.03487,1993.1,1992.7,35.7887138]
[1742693511296,0.21202428,1992.8,1992.7,35.7887138]
[1742693511454,5.01757,1993.0,1992.7,35.7887138]
[1742693511656,0.21202428,1992.8,1992.7,35.7887138]
[1742693512186,10.03324,1993.4,1992.9,5.01767]
[1742693512381,5.01657,1993.4,1993.0,5.01744]
[1742693513065,5.0169,1993.3,1992.9,9.2750838]
[1742693513274,5.01706,1993.2,1992.9,9.2750838]
[1742693513490,5.01706,1993.2,1992.9,4.2574138]
[1742693513997,5.01733,1993.1,1992.7,46.0385738]
[1742693514560,5.01733,1993.1,1992.7,51.0567338]
[1742693514998,5.01733,1993.1,1992.7,46.0385738]
[1742693515366,5.01733,1993.1,1992.7,51.0567138]
[1742693515998,5.01733,1993.1,1992.7,46.0385538]
[1742693516193,0.20970951,1993.0,1992.7,46.0385538]
[1742693516393,5.01771,1993.0,1992.7,26.513]
[1742693516599,0.20970951,1992.9,1992.7,26.513]
[1742693517206,5.22761951,1992.9,1992.7,26.513]
[1742693517394,0.20970951,1992.9,1992.7,26.513]
[1742693518063,5.22754951,1992.9,1992.7,26.513]
[1742693520771,10.24555951,1992.9,1992.7,26.513]
[1742693521294,5.22754951,1992.9,1992.7,26.513]
[1742693521484,10.24555951,1992.9,1992.7,26.513]
[1742693522004,10.24556951,1992.9,1992.7,26.513]
[1742693522507,5.22754951,1992.9,1992.7,26.513]
[1742693524273,10.24555951,1992.9,1992.7,26.513]
[1742693524503,5.01806,1992.8,1992.7,26.513]
[1742693524875,5.01784,1992.9,1992.7,26.513]
[1742693525079,0.20970951,1992.8,1992.7,26.513]
[1742693526398,5.22776951,1992.8,1992.7,26.513]
[1742693527506,0.20970951,1992.8,1992.7,26.513]
[1742693529607,10.03532,1993.0,1992.7,26.513]
[1742693529812,5.22553822,1992.9,1992.7,26.513]
[1742693537987,5.01806,1992.8,1992.7,26.513]
[1742693538218,5.22542975,1992.8,1992.7,26.513]
[1742693539100,6.52707273,1992.8,1992.7,26.513]
[1742693542008,6.54307273,1992.8,1992.7,26.513]
[1742693548123,5.74797273,1992.8,1992.7,26.513]
[1742693552307,0.20736975,1992.8,1992.7,26.513]
[1742693552710,5.01793,1992.9,1992.7,26.513]
[1742693552910,0.20393199,1992.8,1992.7,26.513]
[1742693553226,0.20393199,1992.8,1992.7,31.53131]
[1742693553727,5.01742,1993.1,1992.7,31.53131]
[1742693553924,0.20393199,1992.8,1992.7,31.53131]
[1742693554130,5.01757,1993.0,1992.7,31.53131]
[1742693554334,0.20393199,1992.8,1992.7,31.53131]
[1742693554628,5.01757,1993.0,1992.7,31.53131]
[1742693554834,0.20393199,1992.8,1992.7,31.53131]
[1742693555909,5.01757,1993.0,1992.7,26.513]
[1742693556109,0.20393199,1992.8,1992.7,26.513]
[1742693556309,5.01757,1993.0,1992.7,26.513]
[1742693556310,5.01789,1992.9,1992.7,26.513]
[1742693556620,0.20393199,1992.8,1992.7,26.513]
[1742693563332,10.03488,1993.1,1992.7,31.53131]
[1742693563542,0.2059853,1992.8,1992.7,31.53131]
[1742693563742,10.03488,1993.1,1992.7,31.53131]
[1742693563906,0.2059853,1992.8,1992.7,31.53131]
[1742693564233,10.03488,1993.1,1992.7,31.53131]
[1742693564426,0.2059853,1992.8,1992.7,31.53131]
[1742693565039,5.01758,1993.0,1992.7,26.513]
[1742693565201,0.2059853,1992.8,1992.7,26.513]
[1742693565405,0.2059853,1992.8,1992.7,31.53131]
[1742693565934,5.01682,1993.3,1992.8,5.01786]
[1742693566139,5.01715,1993.2,1992.8,9.2752738]
[1742693566305,5.22337402,1993.2,1992.8,9.2752738]
[1742693566741,0.20622402,1993.2,1992.8,4.2574138]
[1742693567137,10.84931,1993.4,1992.9,5.01759]
[1742693567319,0.20622402,1993.1,1992.9,10.03519]
[1742693567642,0.20622402,1993.0,1992.9,5.01759]
[1742693567833,5.01681,1993.3,1992.9,5.01759]
[1742693568002,0.20622402,1993.2,1992.9,10.03525]
[1742693568306,0.20622402,1993.2,1993.0,4.2574138]
[1742693568502,0.20622402,1993.2,1993.0,9.2749538]
[1742693569235,5.83257,1993.4,1993.0,9.2748038]
[1742693569236,5.01657,1993.4,1993.0,9.2748038]
[1742693569439,5.82327,1993.4,1993.0,5.0175]
[1742693569782,5.22311402,1993.3,1992.9,9.2751538]
[1742693571720,5.01748,1993.1,1992.7,35.7887038]
[1742693572041,0.20727427,1993.0,1992.7,26.513]
[1742693572340,5.82448,1993.0,1992.7,31.53131]
[1742693572710,0.20799035,1992.9,1992.7,31.53131]
[1742693573843,5.01806,1992.8,1992.7,26.513]
[1742693574219,5.22605035,1992.8,1992.7,26.513]
[1742693575740,7.05713639,1992.8,1992.7,26.513]
[1742693578409,11.31455019,1992.8,1992.7,26.513]
[1742693581327,11.86455019,1992.8,1992.7,26.513]
[1742693584019,12.2499069,1992.8,1992.7,26.513]
[1742693587048,15.2499069,1992.8,1992.7,26.513]
[1742693588150,16.23038084,1992.8,1992.7,26.513]
[1742693588550,15.2499069,1992.8,1992.7,26.513]
[1742693591060,14.31455019,1992.8,1992.7,26.513]
[1742693591228,5.22605035,1992.8,1992.7,26.513]
[1742693596570,5.99375035,1992.8,1992.7,26.513]
[1742693596944,10.25116415,1992.8,1992.7,26.513]
[1742693605469,5.01905,1992.5,1992.1,4.2674138]
[1742693605670,5.22064402,1992.4,1992.2,26.531]
[1742693606142,0.20154402,1992.4,1992.2,26.531]
[1742693607056,5.22063402,1992.4,1992.2,26.531]
[1742693613349,5.01932,1992.3,1992.2,26.531]
[1742693613681,5.22091177,1992.3,1992.2,26.531]
[1742693619154,0.20159177,1992.3,1992.2,26.531]
[1742693619578,5.22091177,1992.3,1992.2,26.531]
[1742693625985,5.22091177,1992.3,1992.2,26.534758]
[1742693626496,0.20159177,1992.3,1992.2,31.554328]
[1742693626698,5.01887,1992.5,1992.2,26.534758]
[1742693626861,0.20140069,1992.4,1992.2,26.534758]
[1742693627057,0.20140069,1992.4,1992.2,29.09234484]
[1742693630999,0.20140069,1992.4,1992.3,2.55758684]
[1742693632493,5.01887,1992.5,1992.3,2.55758684]
[1742693634592,5.83986,1992.8,1992.4,2.55758684]
[1742693634820,5.21972069,1992.7,1992.5,2.55758684]
[1742693635690,10.23822069,1992.7,1992.5,2.55758684]
[1742693635998,5.01869,1992.6,1992.3,2.55758684]
[1742693636401,0.20140069,1992.5,1992.3,2.55758684]
[1742693640302,0.20140069,1992.5,1992.3,7.57689684]
[1742693640503,0.20140069,1992.5,1992.4,2.55758684]
[1742693641202,0.20140069,1992.5,1992.3,7.57689684]
[1742693641912,0.20140069,1992.5,1992.3,2.55758684]
[1742693645783,0.20140069,1992.5,1992.4,26.531]
[1742693646926,0.20140069,1992.5,1992.4,29.08858684]
[1742693647215,5.01832,1992.7,1992.4,29.08858684]
[1742693647375,0.20206935,1992.5,1992.4,29.08858684]
[1742693647575,5.01832,1992.7,1992.4,34.10765684]
[1742693647905,0.20206935,1992.6,1992.4,34.10765684]
[1742693648286,0.20206935,1992.6,1992.5,2.55758684]
[1742693652412,0.20206935,1992.6,1992.5,7.57640684]
[1742693652784,5.82469,1993.1,1992.7,5.01825]
[1742693652984,0.20326344,1993.0,1992.8,2.55758684]
[1742693653414,5.22083344,1993.0,1992.8,2.55758684]
[1742693653714,5.22083344,1993.0,1992.7,7.57583684]
[1742693655016,0.20326344,1993.0,1992.7,7.57583684]
[1742693655403,10.84222,1993.1,1992.8,29.08658684]
[1742693655578,0.20326344,1992.9,1992.8,29.08658684]
[1742693655783,10.84222,1993.1,1992.8,29.08658684]
[1742693655983,0.20326344,1992.9,1992.8,29.08658684]
[1742693656496,10.84222,1993.1,1992.8,29.08658684]
[1742693656815,0.20326344,1993.0,1992.8,29.08658684]
[1742693657204,5.22084344,1993.0,1992.8,29.08658684]
[1742693658790,0.20326344,1993.0,1992.8,29.08658684]
[1742693660412,0.20326344,1993.0,1992.9,2.55758684]
[1742693662626,5.22084344,1993.0,1992.8,29.08658684]
[1742693664129,5.22084344,1993.0,1992.8,26.529]
[1742693664529,5.22084344,1993.0,1992.8,29.08658684]
[1742693666936,10.23859344,1993.0,1992.8,26.529]
[1742693667230,0.7752,1992.9,1992.8,26.529]
[1742693667528,0.20503019,1992.9,1992.8,29.08658684]
[1742693667912,5.01736,1993.1,1992.8,29.08658684]
[1742693668115,0.20464827,1993.0,1992.8,29.08658684]
[1742693670532,5.22221827,1993.0,1992.8,29.08658684]
[1742693671335,0.20464827,1993.0,1992.8,29.08658684]
[1742693671740,5.01734,1993.1,1992.9,2.55758684]
[1742693672032,5.01734,1993.1,1992.8,26.529]
[1742693672033,0.20464827,1992.9,1992.8,29.08658684]
[1742693672232,5.01734,1993.1,1992.8,29.08658684]
[1742693672425,0.20464827,1992.9,1992.8,29.08658684]
[1742693672618,5.01734,1993.1,1992.8,29.08658684]
[1742693672797,0.20464827,1992.9,1992.8,29.08658684]
[1742693673002,5.01734,1993.1,1992.8,29.08658684]
[1742693673533,0.20464827,1993.0,1992.8,29.08658684]
[1742693674505,0.20464827,1993.0,1992.9,26.526]
[1742693679510,0.20464827,1993.0,1992.9,29.08358684]
[1742693679710,10.80951,1993.2,1992.9,29.08358684]
[1742693679941,0.20464827,1993.1,1993.0,26.526]
[1742693680938,0.20464827,1993.1,1993.0,34.10114684]
[1742693681127,5.84024,1993.4,1993.0,34.10114684]
[1742693681314,0.20660592,1993.3,1993.1,2.55758684]
[1742693681517,10.85698,1993.4,1993.1,2.55758684]
[1742693681714,0.20660592,1993.3,1993.1,2.55758684]
[1742693681938,10.85698,1993.4,1993.1,2.55758684]
[1742693682114,0.20660592,1993.3,1993.1,2.55758684]
[1742693682310,10.85698,1993.4,1993.1,2.55758684]
[1742693682512,0.20660592,1993.3,1993.1,2.55758684]
[1742693682712,10.85698,1993.4,1993.1,2.55758684]
[1742693683107,0.20660592,1993.3,1993.1,2.55758684]
[1742693683307,10.85698,1993.4,1993.1,2.55758684]
[1742693683506,0.20660592,1993.3,1993.1,2.55758684]
[1742693683718,10.85698,1993.4,1993.1,2.55758684]
[1742693683922,0.20660592,1993.3,1993.1,2.55758684]
[1742693684146,5.01685,1993.3,1993.1,2.55758684]
[1742693684513,0.20660592,1993.2,1993.1,2.55758684]
[1742693687136,5.84024,1993.4,1993.1,2.55758684]
[1742693687342,0.20660592,1993.3,1993.2,2.55758684]
[1742693687632,5.84024,1993.4,1993.2,2.55758684]
[1742693687837,0.20660592,1993.3,1993.2,2.55758684]
[1742693688026,5.84024,1993.4,1993.2,2.55758684]
[1742693688227,0.20660592,1993.3,1993.2,2.55758684]
[1742693688427,5.84024,1993.4,1993.2,2.55758684]
[1742693688927,0.20660592,1993.3,1993.2,2.55758684]
[1742693689134,5.84024,1993.4,1993.1,2.55758684]
[1742693689444,0.20660592,1993.3,1993.1,2.55758684]
[1742693689818,5.84024,1993.4,1993.1,2.55758684]
[1742693690153,0.20660592,1993.3,1993.1,2.55758684]
[1742693690320,5.84024,1993.4,1993.1,2.55758684]
[1742693690521,0.20660592,1993.3,1993.1,2.55758684]
[1742693690734,5.84024,1993.4,1993.1,2.55758684]
[1742693691051,0.20660592,1993.3,1993.1,2.55758684]
[1742693691349,5.84024,1993.4,1993.1,2.55758684]
[1742693691552,0.20660592,1993.3,1993.1,2.55758684]
[1742693691754,5.84024,1993.4,1993.1,2.55758684]
[1742693691949,5.01613,1993.6,1993.3,2.35098092]
[1742693692251,0.18938876,1993.5,1993.4,2.55758684]
[1742693692712,5.01583,1993.7,1993.4,2.55758684]
[1742693692914,0.18938876,1993.6,1993.4,2.55758684]
[1742693693253,10.0318,1993.7,1993.4,2.55758684]
[1742693693453,0.18938876,1993.5,1993.4,2.55758684]
[1742693693656,10.0318,1993.7,1993.4,2.55758684]
[1742693693831,0.18938876,1993.5,1993.3,7.57420684]
[1742693694355,6.49856,1993.8,1993.4,7.57413684]
[1742693694554,0.18938876,1993.7,1993.5,2.55758684]
[1742693694885,0.18938876,1993.7,1993.6,2.55758684]
[1742693695164,0.18938876,1993.7,1993.6,7.57363684]
[1742693695830,0.66,1993.8,1993.7,5.01579]
[1742693696031,0.84938876,1993.8,1993.7,7.57337684]
[1742693696251,0.66,1993.8,1993.7,7.57337684]
[1742693696631,0.85187068,1993.8,1993.7,7.57337684]
[1742693699767,0.85187068,1993.8,1993.7,2.55758684]
[1742693700053,0.85187068,1993.8,1993.5,7.57379684]
[1742693700350,0.85187068,1993.8,1993.7,7.57337684]
[1742693703774,0.85187068,1993.8,1993.7,10.13096368]
[1742693703948,0.85187068,1993.8,1993.7,7.57337684]
[1742693704548,0.66,1993.8,1993.7,7.57337684]
[1742693704741,0.85568846,1993.8,1993.7,34.08937684]
[1742693704948,0.66,1993.8,1993.7,34.08937684]
[1742693706058,0.66,1993.8,1993.7,39.64696368]
[1742693710268,0.66,1993.8,1993.7,49.89696368]
[1742693710473,0.66,1993.8,1993.7,52.89696368]
[1742693714296,0.8263,1994.7,1994.6,2.55758684]
[1742693714464,0.8263,1994.7,1994.6,29.06758684]
[1742693714670,1.02542302,1994.7,1994.6,29.06758684]
[1742693715758,6.03870302,1994.7,1994.6,29.06758684]
[1742693715956,5.99810302,1994.7,1994.6,26.51]
[1742693718591,0.98482302,1994.7,1994.6,29.06758684]
[1742693718759,0.7857,1994.7,1994.6,29.06758684]
[1742693718960,0.98749341,1994.7,1994.6,29.06758684]
[1742693720198,0.98749341,1994.7,1994.6,34.08111684]
[1742693720380,0.98749341,1994.7,1994.6,29.06758684]
[1742693720570,0.20179341,1994.7,1994.6,34.08111684]
[1742693720775,0.7857,1994.9,1994.6,34.08111684]
[1742693720971,0.20179341,1994.8,1994.6,34.08111684]
[1742693721279,0.7857,1994.9,1994.6,31.52353]
[1742693721468,0.20179341,1994.7,1994.6,31.52353]
[1742693721670,0.7857,1994.9,1994.6,31.52353]
[1742693721900,0.20179341,1994.8,1994.6,31.52353]
[1742693722178,0.7857,1994.9,1994.6,31.52353]
[1742693722380,0.20179341,1994.7,1994.6,31.52353]
[1742693722605,0.7857,1994.9,1994.6,31.52353]
[1742693722897,0.20179341,1994.7,1994.6,31.52353]
[1742693723076,5.79849,1994.9,1994.6,31.52353]
[1742693723281,0.20179341,1994.7,1994.6,31.52353]
[1742693723485,0.7857,1994.9,1994.6,31.52353]
[1742693723963,0.20355749,1994.8,1994.6,31.52353]
[1742693724163,0.7857,1994.9,1994.6,31.52353]
[1742693724366,0.20355749,1994.8,1994.6,31.52353]
[1742693724566,0.7857,1994.9,1994.6,31.52353]
[1742693724766,0.20355749,1994.8,1994.6,31.52353]
[1742693724968,0.7857,1994.9,1994.6,31.52353]
[1742693725167,0.20355749,1994.8,1994.6,36.53693]
[1742693725401,0.7857,1994.9,1994.6,31.5234]
[1742693725599,0.20355749,1994.7,1994.6,31.5234]
[1742693725799,0.7857,1994.9,1994.6,31.5234]
[1742693725966,0.7857,1994.9,1994.7,9.26555101]
[1742693726171,5.79798,1995.1,1994.7,9.26557101]
[1742693726588,0.7857,1995.1,1994.8,5.01293]
[1742693726789,0.7857,1995.1,1994.9,5.01262]
[1742693728103,5.79806,1995.1,1994.7,9.26560101]
[1742693728280,5.79806,1995.1,1994.8,5.013]
[1742693729001,0.7857,1995.1,1994.8,5.013]
[1742693729393,5.79804,1995.1,1994.8,5.013]
[1742693731377,0.7857,1995.1,1994.8,5.013]
[1742693731572,0.7857,1995.1,1995.0,5.01253]
[1742693731776,0.7857,1995.1,1994.9,9.26502101]
[1742693732204,0.7824,1995.3,1995.0,5.01253]
[1742693733275,5.79427,1995.3,1994.9,9.26505101]
[1742693734171,0.7824,1995.3,1995.0,5.0123]
[1742693736103,0.7824,1995.3,1995.1,26.499]
[1742693738384,0.44486615,1995.2,1995.1,26.499]
[1742693739831,0.7824,1995.3,1995.1,26.499]
[1742693739986,0.44486615,1995.2,1995.1,26.499]
[1742693743236,6.23318615,1995.2,1995.1,26.499]
[1742693744230,9.908433,1995.2,1995.1,26.499]
[1742693747201,11.61055958,1995.2,1995.1,26.499]
[1742693748558,1.22116615,1995.2,1995.1,26.499]
[1742693748711,6.23318615,1995.2,1995.1,26.499]
[1742693759447,5.45688615,1995.2,1995.1,26.499]
[1742693759916,0.44486615,1995.2,1995.1,26.499]
[1742693760335,5.45688615,1995.2,1995.1,26.499]
[1742693760538,0.44486615,1995.2,1995.1,26.499]
[1742693760737,0.44486615,1995.2,1995.1,31.51128]
[1742693760948,5.01131,1995.5,1995.1,31.51128]
[1742693761127,0.44329379,1995.2,1995.1,31.51128]
[1742693761338,5.01131,1995.5,1995.1,31.51128]
[1742693761646,0.44329379,1995.2,1995.1,31.51128]
[1742693761843,5.01131,1995.5,1995.1,31.51128]
[1742693762052,0.44329379,1995.2,1995.1,31.51128]
[1742693762544,5.01131,1995.5,1995.1,31.51128]
[1742693762854,5.01153,1995.4,1995.1,26.499]
[1742693763152,0.44434204,1995.3,1995.1,26.499]
[1742693764465,5.45611204,1995.3,1995.1,26.499]
[1742693765051,0.44434204,1995.3,1995.1,26.499]
[1742693767632,5.45622204,1995.3,1995.1,26.499]
[1742693768022,0.44434204,1995.3,1995.1,26.499]
[1742693768422,0.44434204,1995.3,1995.1,31.51124]
[1742693768658,0.44434204,1995.3,1995.2,0.0501139]
[1742693768840,5.01128,1995.5,1995.1,31.51114]
[1742693769457,0.44434204,1995.4,1995.1,31.51114]
[1742693770531,0.44434204,1995.4,1995.1,36.5233]
[1742693770933,0.44434204,1995.4,1995.2,5.01197]
[1742693772160,0.44434204,1995.4,1995.1,31.51114]
[1742693773356,0.44434204,1995.4,1995.1,36.5233]
[1742693773546,0.44434204,1995.4,1995.1,31.51114]
[1742693774862,5.45596204,1995.4,1995.1,31.51114]
[1742693775558,5.01181,1995.3,1995.1,26.499]
[1742693775775,5.76272,1995.2,1995.1,26.499]
[1742693776065,6.20734787,1995.2,1995.1,26.499]
[1742693777147,8.75878777,1995.2,1995.1,26.499]
[1742693777354,8.00808777,1995.2,1995.1,26.499]
[1742693777551,8.75878777,1995.2,1995.1,26.499]
[1742693777754,10.24052527,1995.2,1995.1,26.499]
[1742693779160,11.94177511,1995.2,1995.1,26.499]
[1742693780135,7.68908537,1995.2,1995.1,26.499]
[1742693780432,6.20734787,1995.2,1995.1,26.499]
[1742693784934,5.45664787,1995.2,1995.1,26.499]
[1742693787067,6.20734787,1995.2,1995.1,26.499]
[1742693787279,10.46563761,1995.2,1995.1,26.499]
[1742693788883,11.01563761,1995.2,1995.1,26.499]
[1742693789067,12.72032178,1995.2,1995.1,26.499]
[1742693790969,6.21294787,1995.2,1995.1,26.499]
[1742693793058,5.45664787,1995.2,1995.1,26.499]
[1742693804763,0.44462787,1995.2,1995.1,26.499]
[1742693806166,10.0233,1995.4,1995.1,26.499]
[1742693806366,0.44381798,1995.3,1995.1,26.499]
[1742693808157,5.45561798,1995.3,1995.1,26.499]
[1742693808505,5.01202,1995.2,1995.1,26.499]
[1742693808688,5.45769607,1995.2,1995.1,26.499]
[1742693810795,0.44567607,1995.2,1995.1,26.499]
[1742693814769,0.44567607,1995.2,1995.1,31.51128]
[1742693814966,10.02274,1995.5,1995.1,31.51128]